Cogmind - Beta 16 *** ADVENTURER MODE // 2025.12.09 @ 20:53:55 Player: Jefffff Result: Destroyed by C0-CK8(R) with Subdweller Beam Cannon Performance ------------- Evolutions (0) 0 Regions Visited (2) 400 Robots Destroyed (21) 105 Value Destroyed (562) 562 Prototype IDs (3) 60 Alien Tech Used (0) 0 Bonus (0) 0 TOTAL SCORE: 1127 Bonus ------- None Cogmind --------- Core Integrity 0/250 Matter 246/300 Energy 95/100 System Corruption 0% Temperature Cool (11) Movement Walking (120) Location -10/Subcaves Parts ------- > --- POWER (1) -------- (None) > --- PROPULSION (2) --- Aluminum Leg Aluminum Leg > --- UTILITY (2) ------ Medium Storage Unit Utility Shielding > --- WEAPON (2) ------- Subdweller Beam Cannon > --- INVENTORY (10) --- Aluminum Leg Improved Heat Sink Machine Analyzer Light Armor Plating Grenade Launcher Peak State ------------ > --- POWER ------------ Ion Engine > --- PROPULSION ------- Aluminum Leg Aluminum Leg > --- UTILITY ---------- Medium Storage Unit Sensor Array > --- WEAPON ----------- Light Assault Rifle Light Assault Rifle > --- INVENTORY -------- Aluminum Leg Aluminum Leg Aluminum Leg Aluminum Leg Improved Heat Sink Utility Shielding Light Armor Plating Grenade Launcher [Rating: 8] Favorites ----------- Power Ion Engine Engine Ion Engine Propulsion Aluminum Leg Leg Aluminum Leg Utility Medium Storage Unit Device Sensor Array Storage Medium Storage Unit Protection Utility Shielding Weapon Light Assault Rifle Energy Cannon Subdweller Beam Cannon Ballistic Gun Light Assault Rifle Build | -11 -10 -10 ------- Run | Yrd Mat Sub Slots Evolved . | . . . Power . | . . . Propulsion . | . . . Utility . | . . . Weapon . | . . . Parts Attached 20 | 6 7 7 Power 3 | 1 1 1 Engine 3 | 1 1 1 Core . | . . . Reactor . | . . . Propulsion 8 | 2 2 4 Treads . | . . . Leg 8 | 2 2 4 Wheel . | . . . Hover . | . . . Flight . | . . . Utility 4 | 1 2 1 Device 1 | . 1 . Storage 2 | 1 1 . Processor . | . . . Hackware . | . . . Protection 1 | . . 1 Artifact . | . . . Weapon 5 | 2 2 1 Energy Gun . | . . . Energy Cannon 1 | . . 1 Ballistic Gun 4 | 2 2 . Ballistic Cannon . | . . . Launcher . | . . . Special Weapon . | . . . Impact Weapon . | . . . Slashing Weapon . | . . . Piercing Weapon . | . . . Special Melee Weapon . | . . . Unidentified Prototypes . | . . . Parts Lost 8 | . . 8 Power 2 | . . 2 Propulsion 3 | . . 3 Utility 1 | . . 1 Weapon 2 | . . 2 Highest Loss Streak 3 | . . 3 To Critical Strikes . | . . . Average Backups 6 | . 5 8 Power . | . . . Propulsion 2 | . 2 3 Utility 2 | . 1 2 Weapon . | . 1 1 Tool/Special . | . . . Unused Backups 6 | . 2 4 Power 1 | . 1 . Propulsion 1 | . 1 . Utility 3 | . . 3 Weapon 1 | . . 1 Tool/Special . | . . . Average Slot Usage (%) 90 | . 91 89 Engine 13 | . 14 13 Leg 26 | . 24 27 Device 9 | . 11 5 Storage 14 | . 14 14 Protection 3 | . . 8 Energy Cannon 2 | . . 5 Ballistic Gun 20 | . 24 14 Peak Build Rating 8 | 6 8 8 Average Rating 6 | 4 6 7 On Entrance 4 | . 6 8 Avg Prop Armor Cover (%) . | . . . Naked Turns . | . . . Heaviest Build 24 | 12 20 24 Greatest Support 20 | 20 20 20 Greatest Overweight (x) 1 | . 1 1 Average Overweight (x) . | . . . Largest Inventory Capacity 10 | 8 10 10 Average Capacity 9 | 6 9 10 Most Carried 10 | 1 10 10 Average Carried 6 | . 5 8 Final Capacity 10 | 8 10 10 Final Carried 10 | . 10 5 Class Distribution -------------------- 100% | Mutant Dominant Class ---------------- Mutant | -10/Materials Mutant | -10/Subcaves Resources | -11 -10 -10 ----------- Run | Yrd Mat Sub Matter Collected 557 | 77 286 194 Remotely . | . . . Salvage Created 754 | . 520 234 Parts 43 | . 32 11 Haulers Intercepted 2 | . 2 . Recyclers Shooed 1 | . 1 . Parts Field Recycled . | . . . Retrieved Matter . | . . . Parts Self-Destructed 6 | . . 6 Prevented . | . . . Parts Restored . | . . . Kills | -11 -10 -10 ------- Run | Yrd Mat Sub Combat Hostiles Destroyed 16 | . 10 6 Guns 15 | . 10 5 Cannons 1 | . . 1 Classes Destroyed 6 | . 5 1 Hauler 2 | . 2 . Recycler 1 | . 1 . Watcher 2 | . 2 . Swarmer 4 | . 4 . Grunt 6 | . 6 . Subdweller 6 | . . 6 Best Kill Streak 4 | . 4 2 Combat Bots Only 3 | . 3 2 Max Kills in Single Turn 1 | . 1 1 Gunslinging . | . . . Exploded . | . . . Melee . | . . . Uniques/NPCs Destroyed . | . . . Combat | -11 -10 -10 -------- Run | Yrd Mat Sub Hostile Shots Fired 119 | . 62 57 Missed 36 | . 24 12 Hits 83 | . 38 45 Projectile 83 | . 38 45 AOE 3 | . . 3 Critical Strikes 2 | . . 2 Actively Blocked 1 | . . 1 Damage Taken 1312 | . 266 1046 Core 261 | . 41 220 Absorbed by Shields . | . . . Redirected to Shielding 18 | . . 18 Ignored by Resistances 345 | . 88 257 Core Remaining (%) 100 | 100 . . Volleys Fired 93 | . 57 36 Largest 2 | . 2 2 Hottest 100 | . 40 100 Shots Fired 141 | . 90 51 Gun 129 | . 90 39 Cannon 12 | . . 12 Launcher . | . . . Special . | . . . Kinetic 129 | . 90 39 Thermal 12 | . . 12 Explosive . | . . . Electromagnetic . | . . . Robot Hit Streak 22 | . 12 22 Robot Miss Streak 2 | . 2 1 Penetration Max . | . . . Secondary Targets 1 | . . 1 Max Gunslinging Chain 1 | . . 1 Shots Hit Robots 117 | . 69 48 Core Hits 44 | . 31 13 Critical Kills 4 | . 2 2 Critical Parts Destroyed . | . . . Critical Strikes 4 | . 2 2 Destroy 4 | . 2 2 Melee Attacks . | . . . Impact . | . . . Slashing . | . . . Piercing . | . . . Sneak Attacks . | . . . Combat Hostiles . | . . . Follow-up Attacks . | . . . Damage Inflicted 1339 | . 630 709 Guns 1068 | . 630 438 Cannons 271 | . . 271 Explosions . | . . . Melee . | . . . Ramming . | . . . Kinetic 1068 | . 630 438 Thermal 271 | . . 271 Explosive . | . . . Electromagnetic . | . . . Impact . | . . . Slashing . | . . . Piercing . | . . . Highest Corruption . | . . . Average Corruption . | . . . Corruption Purged . | . . . Corruption Blocked . | . . . Overload Shots . | . . . Overflow Damage . | . . . Projectiles . | . . . Explosions . | . . . Melee . | . . . Knockbacks . | . . . Impact . | . . . Kinetic . | . . . Secondary . | . . . Self-Inflicted Damage . | . . . Shots . | . . . Rammed . | . . . Targets Rammed . | . . . Kicked . | . . . Crushed . | . . . Highest Temperature 206 | . 18 206 Average Temperature 28 | . 8 44 Received Heat Transfer 627 | . 93 534 Siege Activations . | . . . Martial Activations . | . . . Shielding Activations . | . . . Robots Disrupted . | . . . Combat Hostiles . | . . . Robots Corrupted . | . . . Combat Hostiles . | . . . Parts Fried . | . . . Impact Corruptions . | . . . Robots Melted . | . . . Combat Hostiles . | . . . Parts Melted . | . . . Heat Transferred 370 | . . 370 Parts Sabotaged . | . . . Parts Stolen . | . . . Parts Stripped . | . . . Power Chain Reactions . | . . . Alert | -11 -10 -10 ------- Run | Yrd Mat Sub Maximum Alert Level . | . . . Low Security (%) 100 | 100 100 . Level 1 . | . . . Level 2 . | . . . Level 3 . | . . . Level 4 . | . . . Level 5 . | . . . High Security . | . . . Max Security . | . . . Peak Influence 127 | . 127 . Initial . | . . . Average 42 | . 45 . Influence Increases 303 | . 303 . Destroy 0b10 Robot/C 200 | . 200 . Destroy 0b10 Robot/NC 25 | . 25 . Destroy Leader 48 | . 48 . Successful Hack 21 | . 21 . Disable Machine 9 | . 9 . Influence Decreases 303 | . 301 2 Entered New Map 2 | . . 2 Time Decay 301 | . 301 . Squads Dispatched 1 | . 1 . Investigation 1 | . 1 . Extermination . | . . . Reinforcement . | . . . Assault . | . . . Garrison . | . . . Intercept . | . . . Searches Triggered . | . . . Construction Impeded . | . . . Haulers Reinforced . | . . . Active Scanning Responses . | . . . Cargo Convoy Interrupts . | . . . Stealth | -11 -10 -10 --------- Run | Yrd Mat Sub Distress Signals . | . . . Communications Jammed . | . . . Distress Signals . | . . . Times Spotted 30 | . 22 8 Peak Tracking Total 5 | . 5 2 Tactical Retreats . | . . . Traps | -11 -10 -10 ------- Run | Yrd Mat Sub Traps Triggered 4 | . 2 2 Indirectly . | . . . Trap Hack Attempts . | . . . Triggered . | . . . Disarmed 6 | . 6 . Reprogrammed . | . . . Reused . | . . . Traps Extracted . | . . . Installed . | . . . Triggered . | . . . Machines | -11 -10 -10 ---------- Run | Yrd Mat Sub Machines Disabled 1 | . 1 . Max in Single Turn 1 | . 1 . Machines Repaired . | . . . Machines Dismantled . | . . . Machines Sabotaged . | . . . Overloaded Fab Kills . | . . . Hacking | -11 -10 -10 --------- Run | Yrd Mat Sub Machines Accessed 6 | . 6 . Terminals 6 | . 6 . Fabricators . | . . . Repair Stations . | . . . Recycling Units . | . . . Scanalyzers . | . . . Garrison Access . | . . . Total Hacks 19 | . 19 . Successful 12 | . 12 . Failed 7 | . 7 . Catastrophic . | . . . Database Lockouts . | . . . Manual 10 | . 10 . Terminals 19 | . 19 . Fabricators . | . . . Repair Stations . | . . . Recycling Units . | . . . Scanalyzers . | . . . Garrison Access . | . . . Terminal Hacks 7 | . 7 . Record 2 | . 2 . Prototype ID Bank 2 | . 2 . Alert Level 1 | . 1 . Locate Traps 1 | . 1 . Disarm Traps 1 | . 1 . Fabricator Hacks . | . . . Repair Station Hacks . | . . . Recycling Unit Hacks . | . . . Scanalyzer . | . . . Garrison Access Hacks . | . . . Unauthorized Hacks 5 | . 5 . Terminals 5 | . 5 . Botnet 5 | . 5 . Fabricators . | . . . Repair Stations . | . . . Recycling Units . | . . . Scanalyzers . | . . . Garrison Access . | . . . Data Cores Recovered . | . . . Used . | . . . Hacking Detections 5 | . 5 . Full Trace Events 2 | . 2 . Feedback Events . | . . . Feedback Blocked . | . . . Robot Schematics Acquired . | . . . Robots Built . | . . . Authchips . | . . . Time . | . . . Total Robot Build Rating . | . . . Part Schematics Acquired . | . . . Parts Built . | . . . Authchips . | . . . Time . | . . . Total Part Build Rating . | . . . Part Studies Acquired . | . . . Parts Repaired . | . . . Time . | . . . Parts Recycled . | . . . Recycled Matter . | . . . Retrieved Matter . | . . . Retrieved Components . | . . . Parts Scanalyzed . | . . . Part Schematics Acquired . | . . . Parts Damaged . | . . . Bothacking | -11 -10 -10 ------------ Run | Yrd Mat Sub Used RIF Installer . | . . . Robots Hacked . | . . . Non-combat . | . . . Combat . | . . . Robot Hacks Applied . | . . . Relay Couplers Released . | . . . Fabnet Peak Effective % . | . . . Robots Rewired . | . . . Allies Hacked . | . . . Hacks Repelled . | . . . Allies | -11 -10 -10 -------- Run | Yrd Mat Sub Total Allies . | . . . Largest Group . | . . . Highest-Rated Group . | . . . Highest-Rated Ally . | . . . Total Orders . | . . . Ally Attacks . | . . . Total Damage . | . . . Kills . | . . . Allies Corrupted . | . . . Allies Melted . | . . . Intel | -11 -10 -10 ------- Run | Yrd Mat Sub Active Infowar (turns) 981 | . 768 213 Sensors 981 | . 768 213 Robot Analysis Total . | . . . Derelict Logs Recovered . | . . . Drone Launches . | . . . Drone Recoveries . | . . . Exploration | -11 -10 -10 ------------- Run | Yrd Mat Sub Turns Passed 1510 | 55 899 556 Spaces Moved 933 | 40 564 329 Core 4 | 4 . . Treads . | . . . Legs 929 | 36 564 329 Wheels . | . . . Hover . | . . . Flight . | . . . Fastest Speed 50 | 50 120 120 Average Speed 131 | 113 129 138 Slowest Speed 190 | 120 190 190 Overloaded Moves . | . . . Propulsion Burnouts . | . . . Robots Hopped . | . . . Potential Cave-ins . | . . . Cave-ins Triggered . | . . . Exploration Rate (%) 37 | 4 83 25 Regions Visited 2 Branch Regions 1 Pre-discovered Areas . | . . . Known Exits Taken . | . . . Unknown Exits Taken 2 | 1 1 . Scrap Searched 6 | . . 6 Spaces Dug . | . . . Terrain Destroyed . | . . . Melee . | . . . Projectile . | . . . AOE . | . . . Terrain Rammed . | . . . Walls Destroyed . | . . . Machines Disabled . | . . . Actions | -11 -10 -10 --------- Run | Yrd Mat Sub Total 1081 | 47 660 374 Wait 10 | . 10 . Move 931 | 39 563 329 Hop . | . . . Pick Up 16 | 1 14 1 Fast Attach 7 | 6 . 1 Attach 8 | . 3 5 Detach . | . . . Swap 7 | . 6 1 Drop 9 | 1 7 1 Fire 93 | . 57 36 Melee . | . . . Ram . | . . . Kick . | . . . Crush . | . . . Escape Stasis . | . . . Rewire . | . . . Trap . | . . . Miscellaneous . | . . . Route ------- -11/Scrapyard -10/Materials (discovered 4 exits: [*Mat x2] / [*Min] / [*Sub]) -10/Subcaves History --------- Turn | Location | Event 5 | -11/Scrapyard | Discovered new exit (range 14) 56 | -11/Scrapyard | Entered Materials 303 | -10/Materials | Build established: Mutant 326 | -10/Materials | Discovered new exit (range 10) 529 | -10/Materials | Discovered new exit (range 13) 533 | -10/Materials | Discovered new exit (range 16) 941 | -10/Materials | Discovered new exit (range 10) 955 | -10/Materials | Entered Subcaves 956 | -10/Subcaves | Ambushed by Subdwellers from Twisted Machinery 956 | -10/Subcaves | Approached by a straggling Scientist 1199 | -10/Subcaves | Lost 3 parts (1n1u1w) 1468 | -10/Subcaves | Core integrity fell below 50% 1494 | -10/Subcaves | Core integrity fell below 20% 1511 | -10/Subcaves | Destroyed by C0-CK8(R) with Subdweller Beam Cannon Last Messages --------------- 01268_ XB-KOG(c) destroyed. 01287_ WT-93P(R) suffers critical hit (Destroy). 01287_ WT-93P(R) destroyed. 01291_ Acquired Sub. Beam Cannon. 01294_ Assault Rifle destroyed. 01299_ UT-HQZ(R) destroyed. 01308_ Subatomizers dissect the Machine Analyzer. 01314_ Acquired Machine Analyzer. 01316_ Tech Extrapolator violently self-destructs. 01316_ Ion Engine destroyed. 01317_ Acquired 15 matter. 01323_ Acquired 3 matter. [Achievement: That Tickles] 01480_ Ion Engine destroyed. 01480_ Sub. Beam Cannon shoots sparks and powers down. 01484_ Aluminum Leg destroyed. 01504_ Critical hit (Meltdown: +240). Map ----- +----------------------------------------------------+ | ???????????????????????????????????????????# # | | ??????????????????????????????????????????## | | ?????????????????????????????????????????## | | ?????????????????????????????????????????# #??? | | ???????????????????????????????????????### ##?? | | ??????????????????????????????????????## ##? | | ?????????????????????????????????????## ## | | ?????????????????????????????????????# ### # | | ?????????????????????????# ??????????# #?## | | ?????????????????????????# ?????????# #??#### | | ?????????????????????????? ????????# ##????### | | ???????????????????????????# ?#?????## ##????# | | ????????????????????????????# # ????## ##???## | | ????????????????????????????# #### #????# | | ?????????????????????????????# # # ##???? | | ????????????????????????###### "#???? | | ????????????????????????# ### #????? | | ????????????????????????# ####### ###### | | ????????????????????????# #?????## | | ????????????????????????# ##???## | | ????????????????????????# ##?## | | ????????????????????????## ### | | ????????????????????????#" R## | | ????????????????????????## | | ????????????????????????## R | | ????????????????????????#@ " | | ????????????????????? " ###"" | | ?????????????????? """##?## " # | | ??????????????????? ###???# "" ? | | ????????????????? #### ##????? "" ? | | ??????????????? #????## #??????? " ?? | | ??????????????#????????# "#???????""" ??? | | ??????????????????????? """#???????""? ### ???? | | ?????????????????????? """##???????????? ?#??????? | | ?????????????????????? ###???????????????????????? | | ?????????????????????????????????????????????????? | | ?????????????????????????????????????????????????? | | ?????????????????????????????????????????????????? | | ?????????????????????????????????????????????????? | | ?????????????????????????????????????????????????? | | ?????????????????????????????????????????????????? | | ?????????????????????????????????????????????????? | | ?????????????????????????????????????????????????? | | ?????????????????????????????????????????????????? | | ?????????????????????????????????????????????????? | | ?????????????????????????????????????????????????? | | ?????????????????????????????????????????????????? | | ?????????????????????????????????????????????????? | | ?????????????????????????????????????????????????? | | ?????????????????????????????????????????????????? | +----------------------------------------------------+ Best States ------------- Heat Dissipation 25 Energy Generation 10 Energy Capacity 250 Matter Stores 300 Matter Capacity 300 Sight Range 16 Robot Scan Range 14 Terrain Scan Density 10 Resistance: KI 20 Resistance: TH 20 Resistance: EX 20 Resistance: EM 20 Resistance: I 20 Resistance: S 20 Resistance: P 20 Utility Shielding 33 Evasion (%) 55 Offensive Hacking 10 Item Schematics ----------------- None Robot Schematics ------------------ None Fabricated ------------ Nothing Repaired ---------- Nothing Studied --------- None Alien Tech Used ----------------- None Achievements -------------- That Tickles Challenges ------------ None Game ------ Seed FieldthrustCarbideSuit Manual? 0 Play Time 00:09:35 Cumulative 265.9 hours Start 2025.12.09 @ 20:44:05 End 2025.12.09 @ 20:53:55 Sessions 1 Manual Loads 0 Difficulty Adventurer Special Mode None Game No. 307 Rogue 0 Adventurer 307 Explorer 0 Win Type - Total 0 Types 0/0/0/0/0/0/0/0/0/0 Lore% 73 Gallery% 59 Achievement% 35 Wizard Run 0 Options --------- Layout 2 ASCII 0 Keyboard 0 Movement Mouse Keybinds 0 Fullscreen 2 Font 48/Smallcaps Map View 50x44 Zoom Use 0% Tactical HUD 1 Map Filters NONE Filters NONE Steam 1 RUN: fc8f6105-8b4d-490a-963b-8d2a54e9c563